Cogmind - Beta 16.1 @@@ ROGUE MODE // 2026.06.21 @ 08:46:27 Player: Godsword Result: Self-destructed Performance ------------- Evolutions (1) 500 Regions Visited (3) 600 Robots Destroyed (4) 20 Value Destroyed (50) 50 Prototype IDs (0) 0 Alien Tech Used (0) 0 Bonus (200) 200 TOTAL SCORE: 1370 Bonus ------- Pacifist 200 Cogmind --------- Core Integrity 173/400 Matter 202/300 Energy 100/100 System Corruption 3% Temperature Cool (6) Movement Core (50) Location -9/Storage Parts ------- > --- POWER (1) -------- (None) > --- PROPULSION (2) --- (None) > --- UTILITY (2) ------ Terrain Scan Processor > --- WEAPON (4) ------- (None) > --- INVENTORY (5) ---- Flight Unit Terrain Scan Processor Plasma Cutter Peak State ------------ > --- POWER ------------ Improved Ion Engine > --- PROPULSION ------- Flight Unit Flight Unit > --- UTILITY ---------- (None) > --- WEAPON ----------- Heavy EM Pulse Gun Heavy EM Pulse Gun Heavy EM Pulse Gun Heavy EM Pulse Gun > --- INVENTORY -------- Rocket Launcher Rocket Launcher Rocket Launcher Rocket Launcher Plasma Cutter [Rating: 13] Favorites ----------- Power Improved Ion Engine Engine Improved Ion Engine Propulsion Flight Unit Flight Unit Flight Unit Utility Terrain Scan Processor Device Terrain Scanner Processor Terrain Scan Processor Weapon Heavy EM Pulse Gun Energy Gun Heavy EM Pulse Gun Launcher Rocket Launcher Special Weapon Plasma Cutter Build | -11 -10 -9 -9 ------- Run | Yrd Mat Mat Sto Slots Evolved 2 | . . 2 . Power . | . . . . Propulsion . | . . . . Utility . | . . . . Weapon 2 | . . 2 . Parts Attached 16 | . 2 2 12 Power 1 | . . . 1 Engine 1 | . . . 1 Core . | . . . . Reactor . | . . . . Propulsion 3 | . . . 3 Treads . | . . . . Leg . | . . . . Wheel . | . . . . Hover . | . . . . Flight 3 | . . . 3 Utility 2 | . . . 2 Device 1 | . . . 1 Storage . | . . . . Processor 1 | . . . 1 Hackware . | . . . . Protection . | . . . . Artifact . | . . . . Weapon 10 | . 2 2 6 Energy Gun 5 | . . 1 4 Energy Cannon . | . . . . Ballistic Gun . | . . . . Ballistic Cannon . | . . . . Launcher 2 | . . . 2 Special Weapon 3 | . 2 1 . Impact Weapon . | . . . . Slashing Weapon . | . . . . Piercing Weapon . | . . . . Special Melee Weapon . | . . . . Unidentified Prototypes . | . . . . Corrupted Parts 1 | . . . 1 System Corruption 2 | . . . 2 Parts Lost 9 | . 2 . 7 Power 1 | . . . 1 Propulsion 2 | . . . 2 Utility 1 | . . . 1 Weapon 5 | . 2 . 3 Highest Loss Streak 6 | . 2 . 6 To Critical Strikes . | . . . . Average Backups 4 | . 2 5 4 Power . | . . . . Propulsion . | . . . . Utility . | . . . . Weapon 3 | . 1 4 3 Tool/Special . | . . . . Unused Backups 4 | . . . 4 Power . | . . . . Propulsion . | . . . . Utility 1 | . . . 1 Weapon 2 | . . . 2 Tool/Special 1 | . . . 1 Average Slot Usage (%) 41 | . 4 8 50 Engine 6 | . . . 8 Flight 1 | . . . 2 Energy Gun 29 | . . 4 36 Special Weapon 1 | . 4 4 . Peak Build Rating 13 | . 5 4 13 Average Rating 8 | . 1 2 10 On Entrance 1 | . . 1 3 Avg Prop Armor Cover (%) . | . . . . Naked Turns 39 | . 35 4 . Heaviest Build 19 | . 2 3 19 Greatest Support 8 | 3 3 3 8 Greatest Overweight (x) 6 | . . . 6 Average Overweight (x) 1 | . . . 3 Largest Inventory Capacity 5 | 5 5 5 5 Average Capacity 5 | 5 5 5 5 Most Carried 5 | . 5 5 5 Average Carried 4 | . 2 5 4 Final Capacity 5 | 5 5 5 5 Final Carried 5 | . 5 5 3 Class Distribution -------------------- 75% | Gunner 24% | Mutant Dominant Class ---------------- Mutant | -10/Materials Mutant | -9/Materials Gunner | -9/Storage Resources | -11 -10 -9 -9 ----------- Run | Yrd Mat Mat Sto Matter Collected 305 | 196 . . 109 Remotely . | . . . . Salvage Created 66 | . . . 66 Parts 5 | . . . 5 Haulers Intercepted . | . . . . Recyclers Shooed . | . . . . Parts Field Recycled . | . . . . Retrieved Matter . | . . . . Parts Self-Destructed . | . . . . Prevented . | . . . . Parts Restored . | . . . . Kills | -11 -10 -9 -9 ------- Run | Yrd Mat Mat Sto Combat Hostiles Destroyed 4 | . . . 4 Guns 1 | . . . 1 AOE 3 | . . . 3 Classes Destroyed 1 | . . . 1 Swarmer 4 | . . . 4 Best Kill Streak 4 | . . . 4 Combat Bots Only 4 | . . . 4 Max Kills in Single Turn 3 | . . . 3 Gunslinging . | . . . . Exploded 3 | . . . 3 Melee . | . . . . Uniques/NPCs Destroyed . | . . . . Combat | -11 -10 -9 -9 -------- Run | Yrd Mat Mat Sto Hostile Shots Fired 55 | . 10 5 40 Missed 12 | . 1 2 9 Hits 43 | . 9 3 31 Projectile 43 | . 9 3 31 Critical Strikes 1 | . . . 1 Damage Taken 739 | . 114 45 580 Core 268 | . 41 28 199 Absorbed by Shields . | . . . . Core Remaining (%) 91 | 100 83 . . Volleys Fired 8 | . . . 8 Largest 4 | . . . 4 Hottest 180 | . . . 180 Shots Fired 16 | . . . 16 Gun 8 | . . . 8 Cannon . | . . . . Launcher 8 | . . . 8 Special . | . . . . Kinetic . | . . . . Thermal . | . . . . Explosive 8 | . . . 8 Electromagnetic 8 | . . . 8 Robot Hit Streak 4 | . . . 4 Robot Miss Streak 2 | . . . 2 Penetration Max . | . . . . Secondary Targets 1 | . . . 1 Max Gunslinging Chain 1 | . . . 1 Shots Hit Robots 6 | . . . 6 Core Hits 7 | . . . 7 Critical Kills . | . . . . Critical Parts Destroyed . | . . . . Critical Strikes . | . . . . Melee Attacks . | . . . . Impact . | . . . . Slashing . | . . . . Piercing . | . . . . Sneak Attacks . | . . . . Combat Hostiles . | . . . . Follow-up Attacks . | . . . . Damage Inflicted 284 | . . . 284 Guns 68 | . . . 68 Cannons . | . . . . Explosions 216 | . . . 216 Melee . | . . . . Ramming . | . . . . Kinetic . | . . . . Thermal 97 | . . . 97 Explosive 119 | . . . 119 Electromagnetic 68 | . . . 68 Impact . | . . . . Slashing . | . . . . Piercing . | . . . . Highest Corruption 3 | . . . 3 Average Corruption 1 | . . . 1 Corruption Purged . | . . . . Corruption Blocked . | . . . . Overload Shots . | . . . . Overflow Damage 43 | . . . 43 Projectiles . | . . . . Explosions 43 | . . . 43 Melee . | . . . . Knockbacks . | . . . . Impact . | . . . . Kinetic . | . . . . Secondary . | . . . . Self-Inflicted Damage 162 | . . . 162 Shots 6 | . . . 6 Rammed . | . . . . Targets Rammed . | . . . . Kicked . | . . . . Crushed . | . . . . Highest Temperature 218 | . . . 218 Average Temperature 76 | . . . 76 Received Heat Transfer 201 | . 63 18 120 Siege Activations . | . . . . Martial Activations . | . . . . Shielding Activations . | . . . . Robots Disrupted . | . . . . Combat Hostiles . | . . . . Robots Corrupted . | . . . . Combat Hostiles . | . . . . Parts Fried . | . . . . Impact Corruptions . | . . . . Robots Melted . | . . . . Combat Hostiles . | . . . . Parts Melted . | . . . . Heat Transferred 150 | . . . 150 Parts Sabotaged . | . . . . Parts Stolen . | . . . . Parts Stripped . | . . . . Power Chain Reactions 1 | . . . 1 Alert | -11 -10 -9 -9 ------- Run | Yrd Mat Mat Sto Maximum Alert Level . | . . . . Low Security (%) 100 | 100 100 100 100 Level 1 . | . . . . Level 2 . | . . . . Level 3 . | . . . . Level 4 . | . . . . Level 5 . | . . . . High Security . | . . . . Max Security . | . . . . Peak Influence 94 | . 9 . 94 Initial . | . . . . Average 10 | . 2 . 13 Influence Increases 174 | . 9 . 165 Destroy 0b10 Robot/C 80 | . . . 80 Destroy Leader 10 | . . . 10 Successful Hack 16 | . 9 . 7 Disable Machine 15 | . . . 15 Destroy Structure 38 | . . . 38 Partial Spotted 15 | . . . 15 Influence Decreases 126 | . 9 . 117 Time Decay 56 | . 9 . 47 Lost Part 70 | . . . 70 Squads Dispatched 3 | . 1 1 1 Investigation 1 | . . 1 . Extermination . | . . . . Reinforcement 1 | . 1 . . Assault . | . . . . Garrison 1 | . . . 1 Intercept . | . . . . Searches Triggered . | . . . . Construction Impeded . | . . . . Haulers Reinforced . | . . . . Active Scanning Responses . | . . . . Cargo Convoy Interrupts . | . . . . Stealth | -11 -10 -9 -9 --------- Run | Yrd Mat Mat Sto Distress Signals 1 | . . . 1 Communications Jammed . | . . . . Distress Signals . | . . . . Times Spotted 23 | . 6 4 13 Peak Tracking Total 9 | . 6 3 9 Tactical Retreats . | . . . . Traps | -11 -10 -9 -9 ------- Run | Yrd Mat Mat Sto Traps Triggered 1 | . . . 1 Indirectly . | . . . . Trap Hack Attempts . | . . . . Triggered . | . . . . Disarmed . | . . . . Reprogrammed . | . . . . Reused . | . . . . Traps Extracted . | . . . . Installed . | . . . . Triggered . | . . . . Machines | -11 -10 -9 -9 ---------- Run | Yrd Mat Mat Sto Machines Disabled 1 | . . . 1 Max in Single Turn 1 | . . . 1 Machines Repaired . | . . . . Machines Dismantled . | . . . . Machines Sabotaged . | . . . . Overloaded Fab Kills . | . . . . Hacking | -11 -10 -9 -9 --------- Run | Yrd Mat Mat Sto Machines Accessed 4 | . 1 2 1 Terminals 3 | . 1 1 1 Fabricators . | . . . . Repair Stations . | . . . . Recycling Units 1 | . . 1 . Scanalyzers . | . . . . Garrison Access . | . . . . Total Hacks 7 | . 2 3 2 Successful 3 | . 1 1 1 Failed 4 | . 1 2 1 Catastrophic 2 | . . 2 . Database Lockouts . | . . . . Manual 4 | . 2 2 . Terminals 6 | . 2 2 2 Fabricators . | . . . . Repair Stations . | . . . . Recycling Units 1 | . . 1 . Scanalyzers . | . . . . Garrison Access . | . . . . Terminal Hacks 2 | . 1 . 1 Level Access Points 1 | . 1 . . Branch Access Points 1 | . . . 1 Fabricator Hacks . | . . . . Repair Station Hacks . | . . . . Recycling Unit Hacks 1 | . . 1 . Retrieve Components 1 | . . 1 . Scanalyzer . | . . . . Garrison Access Hacks . | . . . . Unauthorized Hacks . | . . . . Terminals . | . . . . Fabricators . | . . . . Repair Stations . | . . . . Recycling Units . | . . . . Scanalyzers . | . . . . Garrison Access . | . . . . Data Cores Recovered . | . . . . Used . | . . . . Hacking Detections 2 | . . 1 1 Full Trace Events 1 | . . 1 . Feedback Events . | . . . . Feedback Blocked . | . . . . Robot Schematics Acquired . | . . . . Robots Built . | . . . . Authchips . | . . . . Time . | . . . . Total Robot Build Rating . | . . . . Part Schematics Acquired . | . . . . Parts Built . | . . . . Authchips . | . . . . Time . | . . . . Total Part Build Rating . | . . . . Part Studies Acquired . | . . . . Parts Repaired . | . . . . Time . | . . . . Parts Recycled . | . . . . Recycled Matter . | . . . . Retrieved Matter . | . . . . Retrieved Components 1 | . . 1 . Parts Scanalyzed . | . . . . Part Schematics Acquired . | . . . . Parts Damaged . | . . . . Bothacking | -11 -10 -9 -9 ------------ Run | Yrd Mat Mat Sto Used RIF Installer . | . . . . Robots Hacked . | . . . . Non-combat . | . . . . Combat . | . . . . Robot Hacks Applied . | . . . . Relay Couplers Released . | . . . . Fabnet Peak Effective % . | . . . . Robots Rewired . | . . . . Allies Hacked . | . . . . Hacks Repelled . | . . . . Allies | -11 -10 -9 -9 -------- Run | Yrd Mat Mat Sto Total Allies . | . . . . Largest Group . | . . . . Highest-Rated Group . | . . . . Highest-Rated Ally . | . . . . Total Orders . | . . . . Ally Attacks . | . . . . Total Damage . | . . . . Kills . | . . . . Allies Corrupted . | . . . . Allies Melted . | . . . . Intel | -11 -10 -9 -9 ------- Run | Yrd Mat Mat Sto Active Infowar (turns) 36 | . . . 36 Terrain 36 | . . . 36 Robot Analysis Total . | . . . . Derelict Logs Recovered . | . . . . Drone Launches . | . . . . Drone Recoveries . | . . . . Exploration | -11 -10 -9 -9 ------------- Run | Yrd Mat Mat Sto Turns Passed 481 | 16 47 38 380 Spaces Moved 348 | 33 77 69 169 Core 288 | 33 77 69 109 Treads . | . . . . Legs . | . . . . Wheels . | . . . . Hover . | . . . . Flight 60 | . . . 60 Fastest Speed 37 | 50 50 50 37 Average Speed 121 | 50 50 50 197 Slowest Speed 360 | 50 50 50 360 Overloaded Moves . | . . . . Propulsion Burnouts . | . . . . Robots Hopped 1 | . . . 1 Potential Cave-ins . | . . . . Cave-ins Triggered . | . . . . Exploration Rate (%) 17 | 3 19 7 39 Regions Visited 3 Branch Regions 1 Pre-discovered Areas . | . . . . Known Exits Taken 1 | . 1 . . Unknown Exits Taken 2 | 1 . 1 . Scrap Searched . | . . . . Spaces Dug 18 | . . . 18 Terrain Destroyed 49 | . . . 49 Melee . | . . . . Projectile . | . . . . AOE 49 | . . . 49 Terrain Rammed . | . . . . Walls Destroyed . | . . . . Machines Disabled . | . . . . Actions | -11 -10 -9 -9 --------- Run | Yrd Mat Mat Sto Total 385 | 32 83 71 199 Wait 2 | . . . 2 Move 343 | 32 76 68 167 Hop 1 | . . . 1 Pick Up 7 | . 5 . 2 Fast Attach 13 | . 2 2 9 Attach 2 | . . . 2 Detach . | . . . . Swap 1 | . . . 1 Drop 8 | . . 1 7 Fire 8 | . . . 8 Melee . | . . . . Ram . | . . . . Kick . | . . . . Crush . | . . . . Escape Stasis . | . . . . Rewire . | . . . . Trap . | . . . . Miscellaneous . | . . . . Route ------- -11/Scrapyard -10/Materials (discovered 3 exits: *Mat x3) -9/Materials -9/Storage (discovered 1 exit: Rec) History --------- Turn | Location | Event 4 | -11/Scrapyard | Discovered new exit (range 14) 17 | -11/Scrapyard | Entered Materials 24 | -10/Materials | Identified exit to Materials 64 | -10/Materials | Entered another Materials area 64 | -9/Materials | Evolved 2 slots: Weapon x2 97 | -9/Materials | Discovered new exit (range 10) 102 | -9/Materials | Entered Storage 295 | -9/Storage | Identified exit to Recycling 413 | -9/Storage | Build established: Gunner 418 | -9/Storage | Garrison activated, responded to threat 481 | -9/Storage | Core integrity fell below 50% 482 | -9/Storage | Self-destructed Last Messages --------------- 00439_ R-06 Scavenger collects Hvy. EM Pulse Gun. 00439_ K-01 Serf collects debris. 00442_ Acquired Terrain Scanner. 00444_ Acquired Terrain Scan Processor. 00446_ Dropped Rocket Launcher. 00447_ Acquired Terrain Scan Processor. 00448_ K-01 Serf collects debris. 00468_ Imp. Ion Engine destroyed. 00468_ Destroyed Imp. Ion Engine. 00468_ Flight Unit destroyed. 00468_ Destroyed Flight Unit. 00471_ Door Terminal disabled. 00472_ The unstable cave ceiling collapses. 00473_ Rocket Launcher destroyed. 00475_ Critical hit (Burn: +37). 00478_ Terrain Scanner destroyed. 00480_ Rocket Launcher destroyed. 00480_ Destroyed Rocket Launcher. 00481_ Flight Unit destroyed. Map ----- +----------------------------------------------------+ | | | | | | | | | | | | | | | | | | | ???????????????????????#??????#?????????? | | ??????????????????????#?????????????????? | | ????????????????#?#######????????#?#????? | | ??????????????????# ################# | | ??????????#??#?#??# | | ????????????#?????# u | | ???????????#?#??## g | | ??????#??#??#??# gg####+########? ?? | | ??????????#???? ## #????? | | ?????????????#?# Y # """" #????? | | ???????????????# Y # "??????????? | | ?????##??????> # # "???????? ?? | | ??????#????????# # "??????????? | | ??????#????#"""" # "??? ????? ? | | ???????????# ]] # """" #????? | | ???????#?# # ]] # #????? | | ??#?????## @ ] #+#########?? ?? | | ???????#?# # #?#???#??#???? | | ????#????# # ###### #?#??????????? | | ?????????#### ##?#?# #????????????? | | ????????????# #####????# #?#??? ?? ??? | | ?????????#?# ####??#??# #?##?#???????? | | ?????#?????# ???#?# #?#??????????? | | ????????#??# ?#?## #??##????????? | | ???????#???# ?# ##### #????????????? | | ???????????#####?# #????????????? | | ?????????#???????# #?????##?????? | | ??????????????#??# #????????????? | | ????????????###### #?????#??????? | | ??????????? # #????????????? | | ????????????# #???#????????? | | ????????????# #??????????#?? | | ????????????# ##?#?#?#??????? | | ????????????# "^" #### #?????#???????? | | ????????????+ "R" ?###/#######???????? | | ????????????# """ ??# #? ?????? | | ????????????# ## ! ] #???????? | | ???????????# / #????#??? | | ??????????????? ####### ! """ #???????? | | ??????????????????????# """ # ??????? | | ??????????????????????# """ #???????? | +----------------------------------------------------+ Best States ------------- Heat Dissipation 28 Energy Generation 12 Energy Capacity 265 Matter Stores 300 Matter Capacity 300 Sight Range 16 Terrain Scan Range 14 Terrain Scan Density 85 Evasion (%) 62 Item Schematics ----------------- None Robot Schematics ------------------ None Fabricated ------------ Nothing Repaired ---------- Nothing Studied --------- None Alien Tech Used ----------------- None Achievements -------------- None Challenges ------------ None Game ------ Seed WardroneElectronAutohacker Manual? 0 Play Time 00:06:05 Cumulative 41.2 hours Start 2026.06.21 @ 08:42:34 End 2026.06.21 @ 08:46:27 Sessions 1 Manual Loads 0 Difficulty Rogue Special Mode None Game No. 103 Rogue 103 Adventurer 0 Explorer 0 Win Type - Total 3 Types 3/0/0/0/0/0/0/0/0/0 Lore% 41 Gallery% 35 Achievement% 36 Wizard Run 0 Options --------- Layout 1 ASCII 0 Keyboard 0 Movement Mouse Keybinds 0 Fullscreen 1 Font 16/SmallcapsGlow Map View 50x40 Zoom Use 0% Tactical HUD 1 Map Filters NONE Filters NONE Steam SD RUN: b538f916-0d22-4491-b451-dc6d16a8b890